bitfinex/quotes_SOLUSD_20250210
["timestamp","ask_amount","ask_price","bid_price","bid_amount"]
[1739199466131,13.41184853,204.99,204.98,13.74178753]
[1739199467727,0.03,205.02,204.98,13.74178753]
[1739199467931,0.03,205.02,205.01,13.67878753]
[1739199469229,13.44184853,205.02,205.01,13.67878753]
[1739199469410,0.03,205.02,205.01,13.67878753]
[1739199471635,0.03,205.02,205.01,8.5720027]
[1739199472011,13.41184853,205.01,204.99,8.5720027]
[1739199472334,14.32662167,205.0,204.99,8.5720027]
[1739199472815,13.41184853,204.99,204.98,0.063]
[1739199473219,0.91488373,204.99,204.98,0.063]
[1739199474139,13.41184853,204.99,204.98,0.063]
[1739199474737,14.32679059,204.99,204.98,0.063]
[1739199475616,17.18221795,204.99,204.98,0.063]
[1739199476827,16.26727589,204.99,204.98,8.6350027]
[1739199478136,13.41184853,204.99,204.98,8.6350027]
[1739199482250,0.03,205.02,204.98,8.6350027]
[1739199482425,0.03,205.02,205.01,8.5720027]
[1739199483324,13.44184853,205.02,205.01,8.5720027]
[1739199483533,0.03,205.02,205.01,8.5720027]
[1739199483750,0.03,205.02,205.01,13.7161179]
[1739199484823,0.03,205.02,205.01,150.3571179]
[1739199485430,0.03,205.02,205.01,13.7161179]
[1739199485641,0.03,205.02,204.99,13.7161179]
[1739199487144,13.44184853,205.02,204.99,13.7161179]
[1739199487342,13.41184853,205.0,204.99,13.7161179]
[1739199488244,0.91477718,205.0,204.99,13.7161179]
[1739199489150,14.32662571,205.0,204.99,13.7161179]
[1739199489354,13.41184853,205.0,204.99,13.7161179]
[1739199491932,0.03,205.02,204.99,13.7161179]
[1739199492129,0.03,205.02,205.01,13.7161179]
[1739199493458,16.28326192,205.07,205.02,1.6213]
[1739199493664,16.28326192,205.07,205.06,13.7161179]
[1739199493665,2.87141339,205.07,205.06,13.7161179]
[1739199493866,13.41184853,205.1,205.06,13.7161179]
[1739199494041,13.41184853,205.1,205.09,13.7161179]
[1739199494236,0.03,205.12,205.09,13.7161179]
[1739199494436,0.03,205.12,205.11,13.7161179]
[1739199494639,14.35601005,205.12,205.09,13.7161179]
[1739199494837,13.41184853,205.11,205.09,13.7161179]
[1739199495043,14.32617918,205.1,205.08,13.7161179]
[1739199495645,13.41184853,205.09,205.07,13.7161179]
[1739199495953,14.32622629,205.08,205.07,13.7161179]
[1739199496255,13.41184853,205.07,205.06,13.7161179]
[1739199496440,13.41184853,205.11,205.06,13.7161179]
[1739199496761,18.28784853,205.09,205.04,13.7161179]
[1739199496960,13.41184853,205.07,205.04,13.7161179]
[1739199497145,4.876,205.09,205.04,13.7161179]
[1739199497146,13.41184853,205.05,205.04,13.7161179]
[1739199497550,0.91456086,205.08,205.04,13.7161179]
[1739199497858,0.91444049,205.09,205.06,13.7161179]
[1739199498161,13.41184853,205.08,205.04,13.7161179]
[1739199498360,13.41184853,205.06,205.04,13.7161179]
[1739199498547,0.9145894,205.05,205.02,13.7161179]
[1739199499758,13.41184853,205.04,205.02,13.7161179]
[1739199499956,13.41184853,205.02,205.0,13.7161179]
[1739199500143,14.32653586,205.01,204.98,0.063]
[1739199500352,13.41184853,205.0,204.98,13.7791179]
[1739199500661,13.41184853,205.03,204.99,13.7161179]
[1739199500848,13.41184853,205.01,204.99,13.7161179]
[1739199501055,0.91475763,205.0,204.99,13.7161179]
[1739199501456,0.91475763,205.0,204.98,13.7791179]
[1739199501970,0.91475763,205.0,204.99,13.7161179]
[1739199501971,14.32660616,205.0,204.99,13.7161179]
[1739199502339,13.41184853,205.0,204.99,13.7161179]
[1739199503463,0.91461808,205.09,204.99,13.7161179]
[1739199503661,5.79051808,205.09,205.05,13.7161179]
[1739199503854,13.41184853,205.08,205.04,13.7161179]
[1739199504056,13.41184853,205.06,205.04,13.7161179]
[1739199504756,13.41184853,205.04,205.02,13.7161179]
[1739199505482,14.32641732,205.03,205.02,13.7161179]
[1739199505660,14.32641732,205.03,205.02,8.57254565]
[1739199505846,13.41184853,205.03,205.02,8.57254565]
[1739199507064,13.41184853,205.02,205.0,8.57254565]
[1739199507242,13.41184853,205.0,204.98,0.063]
[1739199507447,14.32665048,204.99,204.98,0.063]
[1739199509272,19.20485048,204.99,204.98,0.063]
[1739199510174,17.19016192,204.99,204.98,8.63554565]
[1739199510369,16.27535997,204.99,204.98,8.63554565]
[1739199511076,13.41184853,204.99,204.98,8.63554565]
[1739199513070,0.91476858,205.02,204.98,8.63554565]
[1739199513246,0.91458977,205.06,205.01,8.57254565]
[1739199513451,0.91455873,205.05,205.01,8.57254565]
[1739199513666,13.41184853,205.07,205.01,8.57254565]
[1739199513873,13.41184853,205.05,205.01,8.57254565]
[1739199514176,13.41184853,205.03,205.01,8.57254565]
[1739199514380,0.91461822,205.08,205.01,8.57254565]
[1739199514689,13.41184853,205.07,205.05,8.57254565]
[1739199514855,14.32636663,205.06,205.05,8.57254565]
[1739199515048,13.41184853,205.05,205.03,8.57254565]
[1739199515246,14.32643043,205.04,205.01,8.57254565]
[1739199515469,13.41184853,205.03,204.99,8.57254565]
[1739199515668,13.1897,205.09,204.98,135.063]
[1739199515669,13.41184853,205.01,204.98,135.063]
[1739199515846,13.41184853,204.99,204.98,0.063]
[1739199516246,13.41184853,205.01,204.98,0.063]
[1739199516449,13.41184853,204.99,204.98,0.063]
[1739199517353,16.27483717,204.99,204.98,0.063]
[1739199517553,22.06799281,204.99,204.98,0.063]
[1739199518770,17.18979281,204.99,204.98,0.063]
[1739199518977,16.27483717,204.99,204.98,0.063]
[1739199520374,21.15303717,204.99,204.98,0.063]
[1739199520580,18.29004853,204.99,204.98,0.063]
[1739199521072,13.41184853,205.0,204.98,0.063]
[1739199521277,0.91485025,204.99,204.98,0.063]
[1739199522056,19.20489878,204.99,204.98,0.063]
[1739199522260,1.0,204.87,204.85,0.063]
[1739199522476,1.0,204.87,204.74,54.19920303]
[1739199522477,22.90012178,204.86,204.74,54.19920303]
[1739199522785,13.41184853,204.82,204.74,54.19920303]
[1739199523080,13.41184853,204.8,204.78,8.57254565]
[1739199523281,0.91561615,204.86,204.78,8.57254565]
[1739199523484,0.91561615,204.86,204.8,8.57254565]
[1739199523671,0.91561615,204.86,204.82,8.57254565]
[1739199523873,0.91544182,204.89,204.84,8.57254565]
[1739199524089,0.91544182,204.89,204.86,8.57254565]
[1739199524477,13.41184853,204.88,204.84,8.57254565]
[1739199524674,13.41184853,204.86,204.82,8.57254565]
[1739199524876,0.9154524,204.85,204.82,8.57254565]
[1739199525271,0.9154524,204.85,204.84,8.57254565]
[1739199525472,0.91545157,204.9,204.84,8.57254565]
[1739199525800,13.41184853,204.87,204.82,13.74206171]
[1739199525965,0.91554709,204.86,204.8,13.74206171]
[1739199527493,0.91554709,204.86,204.82,13.74206171]
[1739199527786,0.91539372,204.89,204.84,13.74206171]
[1739199528002,13.41184853,204.88,204.84,13.74206171]
[1739199528191,0.9153832,204.87,204.84,13.74206171]
[1739199529076,0.91534855,204.88,204.84,13.74206171]
[1739199529280,13.41184853,204.89,204.84,13.74206171]
[1739199529281,13.41184853,204.85,204.84,13.74206171]
[1739199530199,13.41184853,204.89,204.84,13.74206171]
[1739199530420,0.9154059,204.88,204.84,13.74206171]
[1739199530589,0.9154059,204.88,204.82,13.74206171]
[1739199531509,0.9154059,204.88,204.84,13.74206171]
[1739199531884,0.9154059,204.88,204.8,10.0]
[1739199531885,0.9154059,204.88,204.86,13.74206171]
[1739199532084,13.41184853,204.89,204.86,13.74206171]
[1739199532295,13.41184853,204.89,204.88,13.74206171]
[1739199532499,0.91524593,204.93,204.88,13.74206171]
[1739199532688,13.41184853,204.92,204.9,13.74206171]
[1739199532892,6.096,204.95,204.82,13.74206171]
[1739199532893,13.41184853,204.9,204.89,13.74206171]
[1739199533095,13.41184853,204.9,204.87,13.74206171]
[1739199533795,13.41184853,204.93,204.88,10.0]
[1739199533983,0.91519041,204.92,204.88,10.0]
[1739199534489,13.41184853,204.91,204.88,10.0]
[1739199535609,13.41184853,204.89,204.88,10.0]
[1739199536587,13.41184853,204.92,204.88,10.0]
[1739199536793,0.91522493,204.91,204.88,10.0]
[1739199537010,13.41184853,204.9,204.88,10.0]
[1739199539000,0.91512038,204.91,204.88,10.0]
[1739199539202,13.41184853,204.9,204.88,10.0]
[1739199540292,13.41184853,204.92,204.88,10.0]
[1739199540613,0.91517226,204.93,204.88,10.0]
[1739199540818,0.91517226,204.93,204.88,23.74206171]
[1739199540990,0.91507867,204.95,204.88,23.74206171]
[1739199541191,0.91507873,204.98,204.94,13.74206171]
[1739199541403,0.91486198,204.99,204.95,13.74206171]
[1739199541912,13.41184853,204.98,204.95,13.74206171]
[1739199542324,0.91479034,205.01,204.97,13.74206171]
[1739199542512,0.91479034,205.01,204.98,13.74206171]
[1739199542717,13.41184853,205.0,204.97,13.74206171]
[1739199542905,0.91474947,204.99,204.95,13.74206171]
[1739199543397,0.03,205.02,204.98,13.74206171]
[1739199543796,13.41184853,205.01,204.96,13.74206171]
[1739199544209,0.91473872,205.0,204.96,13.74206171]
[1739199544408,13.41184853,204.99,204.96,13.74206171]
[1739199545214,0.91481052,204.99,204.96,13.74206171]
[1739199545618,13.41184853,204.99,204.96,13.74206171]
[1739199546111,13.41184853,205.01,204.96,13.74206171]
[1739199546315,0.03,205.02,205.0,13.74206171]
[1739199546502,0.03,205.02,205.01,13.74206171]
[1739199547616,0.03,205.02,205.01,8.57251045]
[1739199548113,0.03,205.02,204.99,8.57251045]
[1739199548321,0.03,205.02,204.97,8.57251045]
[1739199549204,13.41184853,205.01,204.97,8.57251045]
[1739199550314,0.03,205.02,204.98,8.57251045]
[1739199550522,13.44184853,205.02,204.98,8.57251045]
[1739199552428,18.31944853,205.02,204.97,8.57251045]
[1739199552604,13.41184853,205.0,204.95,8.57251045]
[1739199552919,0.03,205.02,204.97,8.57251045]
[1739199553418,0.94472455,205.02,204.97,8.57251045]
[1739199553601,5.82222455,205.02,204.97,8.57251045]
[1739199553805,13.41184853,205.01,204.95,8.57251045]
[1739199554001,0.91479176,205.0,204.95,8.57251045]
[1739199554200,13.41184853,204.99,204.95,8.57251045]
[1739199554404,13.41184853,204.99,204.98,8.57251045]
[1739199554609,0.03,205.02,204.98,8.57251045]
[1739199554811,0.03,205.02,205.01,8.57251045]
[1739199556220,0.03,205.02,205.0,8.57251045]
[1739199557113,0.03,205.02,205.01,8.57251045]
[1739199557806,0.03,205.02,205.01,143.57251045]
[1739199566813,0.03,205.02,205.01,225.47251045]
[1739199567013,0.03,205.11,205.04,20.0]
[1739199567205,0.03,205.11,205.1,8.57251045]
[1739199567633,0.03,205.11,205.09,8.57251045]
[1739199567926,13.44184853,205.11,205.06,8.57251045]
[1739199569112,0.03,205.11,205.07,8.57251045]
[1739199569316,0.03,205.11,205.1,8.57251045]
[1739199574101,0.03,205.11,205.06,8.57251045]
[1739199574310,22.01435898,205.11,205.04,225.47251045]
[1739199574508,13.41184853,205.09,205.04,8.57251045]
[1739199575210,0.03,205.11,205.06,8.57251045]
[1739199575411,13.44184853,205.11,205.08,8.57251045]
[1739199575928,0.03,205.11,205.08,8.57251045]
[1739199576507,0.03,205.11,205.09,8.57251045]
[1739199576925,1.6046,205.08,204.95,8.63551045]
[1739199577123,8.57251045,205.04,204.95,143.63551045]
[1739199577316,0.91473316,205.03,204.95,143.63551045]
[1739199577517,13.31184853,205.02,204.95,143.63551045]
[1739199577719,0.91474016,205.01,204.95,143.63551045]
[1739199578034,8.57251045,205.0,204.95,0.063]
[1739199578233,8.57251045,204.98,204.95,0.063]
[1739199578414,0.91494499,204.97,204.95,0.063]
[1739199579636,13.41184853,204.97,204.95,0.063]
[1739199581334,6.3098,205.0,204.96,8.57251045]
[1739199581541,0.9148812,204.99,204.96,8.57251045]
[1739199581834,13.41184853,204.98,204.96,8.57251045]
[1739199582425,13.41184853,204.98,204.95,8.63551045]
[1739199582735,7.22458478,205.0,204.95,8.63551045]
[1739199583335,0.91474529,205.02,204.98,8.57251045]
[1739199583728,13.41184853,205.01,204.99,8.57251045]
[1739199583929,13.41184853,205.01,204.97,8.57251045]
[1739199584125,13.41184853,204.99,204.95,143.63551045]
[1739199584331,13.41184853,204.99,204.95,135.063]
[1739199584535,13.41184853,204.99,204.96,8.57251045]
[1739199584739,13.41184853,204.99,204.95,143.63551045]
[1739199586838,13.41184853,204.99,204.96,8.57251045]
[1739199587053,13.41184853,204.99,204.95,143.63551045]
[1739199587559,18.28964853,205.01,204.95,143.63551045]
[1739199587855,13.41184853,204.99,204.95,143.63551045]
[1739199588259,13.41184853,204.97,204.95,135.063]
[1739199588556,13.41184853,204.97,204.95,0.063]
[1739199588928,14.32674654,204.96,204.95,0.063]
[1739199589529,27.77825699,204.96,204.95,0.063]
[1739199590658,19.20574654,204.96,204.95,0.063]
[1739199591429,33.85415699,204.96,204.95,0.063]
[1739199592847,28.97515699,204.96,204.95,0.063]
[1739199593660,13.41184853,204.96,204.95,0.063]
[1739199596457,18.29084853,204.96,204.95,0.063]
[1739199597148,13.41184853,204.96,204.95,0.063]
[1739199597447,14.32682389,204.96,204.95,0.063]
[1739199597845,19.20582389,204.96,204.95,0.063]
[1739199598046,27.77833434,204.96,204.95,0.063]
[1739199598245,20.0,204.92,204.88,10.0]
[1739199598559,1.8094886,204.91,204.85,0.063]
[1739199598765,1.8094886,204.91,204.86,8.57251045]
[1739199598938,0.9152005,204.93,204.86,8.57251045]
[1739199599260,0.9152005,204.93,204.88,8.57251045]
[1739199599455,13.41184853,204.92,204.88,8.57251045]
[1739199599663,13.41184853,204.9,204.88,8.57251045]
[1739199600351,0.91509224,204.99,204.91,20.0]
[1739199600533,0.91509224,204.99,204.95,8.57251045]
[1739199600869,0.91480413,205.0,204.95,8.57251045]
[1739199601163,5.79280413,205.0,204.93,8.57251045]
[1739199601365,13.41184853,204.96,204.91,135.0]
[1739199601598,13.41184853,204.94,204.91,135.0]
[1739199601737,13.41184853,204.94,204.87,8.57251045]
[1739199601937,13.41184853,204.92,204.87,143.57251045]
[1739199602163,13.41184853,204.9,204.87,143.57251045]
[1739199602359,13.41184853,204.93,204.87,143.57251045]
[1739199602567,0.91519767,204.92,204.87,135.0]
[1739199602851,0.91519767,204.92,204.85,8.63551045]
[1739199603152,8.57251045,204.86,204.85,0.063]
[1739199603351,22.89983483,204.86,204.85,0.063]
[1739199603572,27.78113483,204.86,204.85,0.063]
[1739199604548,22.89983483,204.86,204.85,0.063]
[1739199606466,27.78113483,204.86,204.85,0.063]
[1739199606667,28.67527992,204.86,204.85,10.063]
[1739199607276,23.79397992,204.86,204.85,10.063]
[1739199608465,13.41184853,204.86,204.85,10.063]
[1739199608667,0.91546036,204.89,204.85,20.063]
[1739199609278,0.91527453,204.91,204.87,8.57251045]
[1739199609588,0.91514012,204.93,204.88,8.57251045]
[1739199609882,0.03,204.94,204.91,8.57251045]
[1739199610079,0.03,204.94,204.92,8.57251045]
[1739199610258,0.03,204.94,204.92,143.57251045]
[1739199611388,0.03,204.94,204.93,8.57251045]
[1739199613275,0.03,204.94,204.91,8.57251045]
[1739199613498,13.44184853,204.94,204.9,135.0]
[1739199613795,13.41184853,204.92,204.9,135.0]
[1739199613995,14.35689998,204.94,204.9,135.0]
[1739199614363,20.0,204.9,204.87,8.57251045]
[1739199614684,8.57251045,204.88,204.85,20.063]
[1739199614888,13.41184853,204.86,204.85,20.063]
[1739199615096,13.41184853,204.86,204.85,28.63551045]
[1739199615582,6.3672,204.93,204.85,163.63551045]
[1739199615787,0.03,204.94,204.9,8.57251045]
[1739199616284,0.03,204.94,204.92,8.57251045]
[1739199616892,0.03,204.94,204.93,8.57251045]
[1739199619066,0.03,204.94,204.93,9.57251045]
[1739199619275,0.03,205.02,204.93,144.57251045]
[1739199619486,0.03,205.02,205.01,8.57251045]
[1739199619704,0.03,205.02,205.01,148.70963397]
[1739199620379,0.03,205.02,204.99,13.70963397]
[1739199620777,0.03,205.02,205.01,13.70963397]
[1739199623114,0.03,205.02,205.01,148.70963397]
[1739199625796,0.03,205.02,205.01,158.70963397]
[1739199626197,0.03,205.11,205.04,22.0]
[1739199626395,0.03,205.11,205.1,13.70963397]
[1739199626697,0.03,205.11,205.1,148.70963397]
[1739199627599,0.03,205.11,205.1,13.70963397]
[1739199627786,0.03,205.11,205.09,13.70963397]
[1739199628007,0.03,205.11,205.06,135.0]
[1739199628008,0.03,205.11,205.1,10.0]
[1739199628924,0.03,205.11,205.1,23.70963397]
[1739199630224,0.03,205.11,205.1,10.0]
[1739199630825,0.03,205.11,205.1,23.70963397]
[1739199631517,0.03,205.11,205.1,10.0]
[1739199631712,14.35603522,205.11,205.1,10.0]
[1739199632110,0.03,205.11,205.1,23.70963397]
[1739199632311,0.03,205.11,205.1,33.70963397]
[1739199632728,0.03,205.11,205.1,250.60963397]
[1739199633733,0.03,205.12,205.1,252.60963397]
[1739199633926,0.03,205.15,205.14,20.0]
[1739199634126,0.03,205.15,205.14,47.41926794]
[1739199634341,0.03,205.15,205.14,33.70963397]
[1739199636216,0.03,205.15,205.14,47.41926794]
[1739199636623,0.03,205.15,205.14,264.31926794]
[1739199636938,0.03,205.18,205.15,1.0]
[1739199637140,0.03,205.18,205.17,33.70963397]
[1739199637917,0.03,205.18,205.17,13.70963397]
[1739199640143,0.03,205.18,205.15,13.70963397]
[1739199640322,13.44184853,205.18,205.15,13.70963397]
[1739199640518,13.44184853,205.18,205.14,13.70963397]
[1739199640719,13.44184853,205.18,205.17,13.70963397]
[1739199640938,0.03,205.18,205.17,13.70963397]
[1739199641643,0.03,205.18,205.15,13.70963397]
[1739199642046,4.9037,205.18,205.13,13.70963397]
[1739199642244,13.41184853,205.16,205.14,13.70963397]
[1739199643558,13.41184853,205.16,205.15,13.70963397]
[1739199643728,0.03,205.18,205.15,13.70963397]
[1739199644244,13.44184853,205.18,205.16,13.70963397]
[1739199644546,0.03,205.18,205.17,13.70963397]
[1739199645544,0.03,205.18,205.17,148.70963397]
[1739199645746,0.03,205.23,205.2,20.0]
[1739199645942,0.03,205.23,205.22,8.55636883]
[1739199646448,0.03,205.23,205.22,143.55636883]
[1739199647625,0.03,205.23,205.22,148.68496737]
[1739199649568,0.03,205.32,205.25,20.0]
[1739199649857,0.03,205.32,205.31,13.68496737]
[1739199653232,0.03,205.32,205.31,148.68496737]
[1739199653426,0.03,205.35,205.34,20.0]
[1739199653634,0.03,205.35,205.34,33.68496737]
[1739199656959,0.03,205.35,205.34,168.68496737]
[1739199657328,0.03,205.35,205.34,183.36993474]
[1739199657534,0.03,205.35,205.34,169.68496737]
[1739199658347,0.03,205.35,205.34,183.36993474]
[1739199659746,0.03,205.37,205.34,183.36993474]
[1739199659939,0.03,205.37,205.36,27.36993474]
[1739199660659,0.03,205.39,205.38,20.0]
[1739199660971,0.03,205.44,205.38,43.49581025]
[1739199661171,0.03,205.44,205.42,13.68496737]
[1739199661346,0.03,205.44,205.43,13.68496737]
[1739199663865,0.03,205.44,205.41,13.68496737]
[1739199664033,0.9427988,205.44,205.39,13.68496737]
[1739199664237,0.03,205.44,205.42,13.68496737]
[1739199664549,0.03,205.44,205.43,13.68496737]
[1739199666367,0.03,205.49,205.46,20.0]
[1739199666540,0.03,205.49,205.48,27.36993474]
[1739199667065,0.03,205.49,205.48,13.68496737]
[1739199667751,0.03,205.49,205.46,13.68496737]
[1739199667951,14.35444072,205.49,205.42,13.68496737]
[1739199668669,13.41184853,205.45,205.4,13.68496737]
[1739199668875,13.41184853,205.43,205.4,13.68496737]
[1739199669051,13.41184853,205.43,205.38,23.49581025]
[1739199669246,6.6081,205.46,205.42,13.68496737]
[1739199669770,6.6081,205.46,205.44,13.68496737]
[1739199669962,13.41184853,205.45,205.44,13.68496737]
[1739199670162,13.41184853,205.45,205.42,13.68496737]
[1739199670376,13.41184853,205.45,205.44,13.68496737]
[1739199670682,0.03,205.49,205.44,13.68496737]
[1739199671249,0.03,205.49,205.48,13.68496737]
[1739199672569,0.03,205.49,205.48,27.36993474]
[1739199672777,0.03,205.49,205.48,13.68496737]
[1739199674573,0.03,205.49,205.48,27.36993474]
[1739199675151,0.03,205.49,205.48,13.68496737]
[1739199675351,0.03,205.49,205.48,27.36993474]
[1739199675956,0.03,205.49,205.48,13.68496737]
[1739199678060,0.03,205.49,205.47,13.68496737]
[1739199678260,0.03,205.49,205.48,13.68496737]
[1739199679153,0.03,205.49,205.48,27.36993474]
[1739199679480,0.03,205.49,205.48,13.68496737]
[1739199679651,0.03,205.5,205.48,164.36993474]
[1739199679852,0.03,205.56,205.55,13.68496737]
[1739199680869,0.03,205.56,205.55,148.68496737]
[1739199682990,0.13001933,205.56,205.55,148.68496737]
[1739199684372,0.13001933,205.56,205.55,13.68496737]
[1739199684865,0.13001933,205.56,205.55,148.68496737]
[1739199688561,0.06545119,205.58,205.57,20.0]
[1739199688771,0.06545119,205.58,205.57,33.68496737]
[1739199688967,0.06545119,205.58,205.57,168.68496737]
[1739199689164,0.09820351,205.59,205.57,48.36993474]
[1739199689386,1.5392,205.72,205.6,20.0]
[1739199689691,1.5392,205.72,205.6,33.68496737]
[1739199689996,0.03,205.7,205.62,1.0]
[1739199690299,0.03,205.7,205.66,20.0]
[1739199690593,0.03,205.7,205.69,13.68496737]
[1739199691566,0.03,205.7,205.67,13.68496737]
[1739199692179,0.03,205.7,205.61,6.56583489]
[1739199692180,0.03,205.7,205.65,13.68496737]
[1739199692381,27.0968159,205.68,205.61,20.25080226]
[1739199692595,27.0968159,205.68,205.6,13.68496737]
[1739199692596,13.68496737,205.67,205.6,13.68496737]
[1739199692878,13.41184853,205.64,205.58,13.68496737]
[1739199693182,13.41184853,205.64,205.59,13.68496737]
[1739199693382,13.41184853,205.64,205.53,6.56839056]
[1739199693383,13.41184853,205.62,205.56,13.68496737]
[1739199693596,27.0968159,205.6,205.53,20.25335793]
[1739199693802,33.3008159,205.58,205.53,6.56839056]
[1739199693966,6.204,205.58,205.53,6.56839056]
[1739199694266,6.204,205.63,205.57,13.68496737]
[1739199694468,0.911881,205.62,205.57,13.68496737]
[1739199694666,13.41184853,205.61,205.55,13.68496737]
[1739199694861,13.41184853,205.61,205.56,13.68496737]
[1739199695073,13.41184853,205.61,205.57,13.68496737]
[1739199695272,13.41184853,205.61,205.53,6.56839056]
[1739199695273,13.41184853,205.61,205.56,13.68496737]
[1739199695470,27.0968159,205.59,205.53,6.56839056]
[1739199695663,13.41184853,205.57,205.53,6.56839056]
[1739199695869,0.91225812,205.56,205.53,6.56839056]
[1739199696096,13.41184853,205.55,205.53,6.56839056]
[1739199696878,14.32417995,205.54,205.53,6.56839056]
[1739199697466,14.32417995,205.54,205.47,13.68496737]
[1739199697683,13.41184853,205.53,205.47,13.68496737]
[1739199697882,6.204,205.52,205.48,13.68496737]
[1739199698184,13.41184853,205.51,205.49,13.68496737]
[1739199698679,13.41184853,205.51,205.48,13.68496737]
[1739199699979,13.41184853,205.51,205.45,13.68496737]
[1739199700374,13.41184853,205.49,205.45,13.68496737]
[1739199700574,14.32437159,205.51,205.45,13.68496737]
[1739199700876,13.41184853,205.5,205.45,13.68496737]
[1739199701280,0.91255479,205.49,205.44,13.74796737]
[1739199701883,14.32442562,205.5,205.45,13.68496737]
[1739199702191,13.41184853,205.51,205.47,13.68496737]
[1739199702395,13.41184853,205.51,205.46,13.68496737]
[1739199702890,0.08798883,205.47,205.46,13.68496737]
[1739199703469,0.08798883,205.47,205.45,13.68496737]
[1739199703670,0.08798883,205.47,205.44,0.063]
[1739199703881,13.49983736,205.47,205.44,0.063]
[1739199704389,0.08798883,205.47,205.44,0.063]
[1739199704993,5.86749136,205.47,205.44,0.063]
[1739199705182,19.27933989,205.47,205.44,0.063]
[1739199705683,13.41184853,205.46,205.44,13.74796737]
[1739199706199,0.08798883,205.47,205.45,13.68496737]
[1739199706376,0.08798883,205.47,205.46,13.68496737]
[1739199706983,13.49983736,205.47,205.44,0.063]
[1739199707188,0.08798883,205.47,205.45,13.68496737]
[1739199707495,0.08798883,205.47,205.46,13.68496737]
[1739199708376,0.08798883,205.47,205.45,13.68496737]
[1739199708571,0.08798883,205.47,205.44,0.063]
[1739199708804,13.41184853,205.46,205.44,0.063]
[1739199710208,13.49983736,205.47,205.44,0.063]
[1739199710573,0.91267436,205.46,205.44,0.063]
[1739199710795,4.8673,205.45,205.44,0.063]
[1739199711001,13.41184853,205.45,205.44,0.063]
[1739199712274,14.3246301,205.45,205.44,0.063]
[1739199713506,13.41184853,205.45,205.44,0.063]
[1739199714389,32.87682078,205.45,205.44,0.063]
[1739199715197,39.92752078,205.45,205.44,0.063]
[1739199715508,40.82166587,205.45,205.44,0.063]
[1739199715805,1.6274,205.39,205.31,6.57542892]
[1739199715986,13.41184853,205.33,205.27,13.68496737]
[1739199716295,13.68496737,205.37,205.29,13.68496737]
[1739199716611,0.91316664,205.36,205.29,13.68496737]
[1739199716902,13.41184853,205.35,205.3,13.68496737]
[1739199717083,0.91310902,205.38,205.31,13.68496737]
[1739199717288,28.00992492,205.38,205.31,13.68496737]
[1739199717709,14.32495755,205.38,205.31,13.68496737]
[1739199718418,13.41184853,205.37,205.31,13.68496737]
[1739199718622,13.41184853,205.33,205.27,13.68496737]
[1739199719123,13.68496737,205.34,205.28,13.68496737]
[1739199719124,13.41184853,205.34,205.28,13.68496737]
[1739199719419,1.6274,205.39,205.33,13.68496737]
[1739199719719,13.41184853,205.38,205.34,13.68496737]
[1739199719913,13.41184853,205.38,205.35,13.68496737]
[1739199720302,1.6274,205.39,205.35,13.68496737]
[1739199720612,6.09,205.4,205.36,13.68496737]
[1739199720922,13.41184853,205.39,205.35,13.68496737]
[1739199721303,13.41184853,205.39,205.34,13.68496737]
[1739199721525,0.91300555,205.38,205.31,13.68496737]
[1739199721707,13.41184853,205.35,205.29,135.0]
[1739199722017,14.32507802,205.35,205.29,135.0]
[1739199722520,6.09,205.4,205.34,13.68496737]
[1739199722720,15.33936737,205.44,205.37,13.68496737]
[1739199723017,0.08798883,205.47,205.43,13.68496737]
[1739199723226,7.00265582,205.48,205.43,13.68496737]
[1739199723398,7.00265582,205.48,205.32,138.6011]
[1739199723399,13.41184853,205.47,205.41,13.68496737]
[1739199723599,13.68496737,205.44,205.37,13.68496737]
[1739199723810,13.82468166,205.43,205.37,13.68496737]
[1739199724017,13.68496737,205.42,205.35,13.68496737]
[1739199724225,14.59792305,205.41,205.33,13.68496737]
[1739199724394,13.68496737,205.38,205.3,13.68496737]
[1739199724601,14.59810728,205.37,205.3,13.68496737]
[1739199724815,13.68496737,205.34,205.27,13.68496737]
[1739199725003,13.68496737,205.35,205.28,13.68496737]
[1739199725208,0.91332023,205.37,205.3,13.68496737]
[1739199725398,13.68496737,205.35,205.28,13.68496737]
[1739199725615,13.68496737,205.33,205.26,13.68496737]
[1739199725819,0.91336533,205.32,205.26,13.68496737]